fUST/lending_fUST_20250119
["ID","MTS","AMOUNT","RATE_DAILY","PERIOD"]
[349567741,1737300634594,-500.0,0.00021916,2]
[349567743,1737300634604,-500.0,0.00021916,2]
[349567745,1737300634613,-649.45237844,0.00021916,2]
[349567747,1737300634622,-500.0,0.00021916,2]
[349567749,1737300634631,-500.0,0.00021916,2]
[349567750,1737300634641,-500.0,0.00021916,2]
[349567753,1737300634654,-500.0,0.00021916,2]
[349567754,1737300634663,-500.0,0.00021916,2]
[349567757,1737300634673,-500.0,0.00021916,2]
[349567758,1737300634682,-500.0,0.00021916,2]
[349567760,1737300634691,-500.0,0.00021916,2]
[349567762,1737300634700,-500.0,0.00021916,2]
[349567764,1737300634709,-500.0,0.00021916,2]
[349567766,1737300634719,-500.0,0.00021916,2]
[349567768,1737300634728,-500.0,0.00021916,2]
[349567770,1737300634737,-500.0,0.00021916,2]
[349567772,1737300634746,-500.0,0.00021916,2]
[349567774,1737300634755,-500.0,0.00021916,2]
[349567776,1737300634765,-500.0,0.00021916,2]
[349567778,1737300634775,-500.0,0.00021916,2]
[349567780,1737300634784,-500.0,0.00021916,2]
[349567782,1737300634793,-500.0,0.00021916,2]
[349567784,1737300634802,-500.0,0.00021916,2]
[349567786,1737300634812,-500.0,0.00021916,2]
[349567788,1737300634822,-500.0,0.00021916,2]
[349567790,1737300634831,-500.0,0.00021916,2]
[349567792,1737300634843,-500.0,0.00021916,2]
[349567795,1737300634857,-500.0,0.00021916,2]
[349567797,1737300634870,-500.0,0.00021916,2]
[349567800,1737300634884,-500.0,0.00021916,2]
[349567802,1737300634899,-500.0,0.00021916,2]
[349567804,1737300634911,-500.0,0.00021916,2]
[349567807,1737300634924,-500.0,0.00021916,2]
[349567809,1737300634937,-500.0,0.00021916,2]
[349567811,1737300634949,-500.0,0.00021916,2]
[349567813,1737300634963,-500.0,0.00021916,2]
[349567816,1737300634976,-500.0,0.00021916,2]
[349567818,1737300634988,-500.0,0.00021916,2]
[349567821,1737300635002,-500.0,0.00021916,2]
[349567823,1737300635016,-499.99999999,0.00021916,2]
[349567825,1737300635029,-500.0,0.00021916,2]
[349567828,1737300635041,-500.0,0.00021916,2]
[349567830,1737300635055,-500.0,0.00021916,2]
[349567831,1737300635067,-500.0,0.00021916,2]
[349567832,1737300635081,-500.0,0.00021916,2]
[349567833,1737300635094,-600.0,0.00021916,2]
[349567834,1737300635106,-154.03,0.00021917,2]
[349567835,1737300635118,-500.0,0.00021917,3]
[349567836,1737300635128,-500.0,0.00021917,3]
[349567837,1737300635139,-500.0,0.00021917,3]
[349567838,1737300635153,-500.0,0.00021917,3]
[349567839,1737300635166,-500.0,0.00021917,3]
[349567840,1737300635178,-500.0,0.00021917,3]
[349567841,1737300635191,-500.0,0.00021917,3]
[349567842,1737300635204,-500.0,0.00021917,3]
[349567843,1737300635221,-500.0,0.00021917,3]
[349567844,1737300635233,-500.0,0.00021917,3]
[349567845,1737300635246,-500.0,0.00021917,3]
[349567846,1737300635260,-595.78261997,0.00021917,3]
[349567847,1737300635271,-500.0,0.00021917,3]
[349567848,1737300635281,-500.0,0.00021917,3]
[349567849,1737300635291,-478.59770711,0.00021917,3]
[349567850,1737300635302,-248.06734904,0.00021917,2]
[349567851,1737300635313,-269.5,0.00021917,3]
[349567852,1737300635327,-500.0,0.00021917,3]
[349567853,1737300635339,-500.0,0.00021917,3]
[349567854,1737300635350,-500.0,0.00021917,3]
[349567855,1737300635361,-500.0,0.00021917,3]
[349567856,1737300635372,-500.0,0.00021917,3]
[349567857,1737300635383,-508.5,0.00021917,3]
[349567858,1737300635396,-500.0,0.00021917,3]
[349567859,1737300635409,-500.0,0.00021917,3]
[349567860,1737300635420,-775.0,0.00021917,3]
[349567861,1737300635431,-500.0,0.00021917,3]
[349567862,1737300635442,-500.0,0.00021917,3]
[349567863,1737300635453,-500.0,0.00021917,3]
[349567864,1737300635465,-530.9980873,0.00021917,3]
[349567865,1737300635476,-500.0,0.00021917,3]
[349567866,1737300635487,-500.0,0.00021917,3]
[349567867,1737300635500,-500.0,0.00021917,3]
[349567868,1737300635511,-1069.31,0.00021917,3]
[349567869,1737300635522,-500.0,0.00021917,3]
[349567870,1737300635533,-500.0,0.00021917,3]
[349567871,1737300635544,-500.0,0.00021917,3]
[349567872,1737300635555,-500.0,0.00021917,3]
[349567873,1737300635567,-500.0,0.00021917,3]
[349567874,1737300635580,-512.58511843,0.00021917,3]
[349567875,1737300635591,-500.0,0.00021917,3]
[349567876,1737300635603,-500.0,0.00021917,3]
[349567877,1737300635615,-661.71,0.00021917,3]
[349567878,1737300635626,-500.0,0.00021917,3]
[349567879,1737300635637,-943.52,0.00021917,3]
[349567880,1737300635649,-500.0,0.00021917,3]
[349567881,1737300635660,-561.9,0.00021917,3]
[349567882,1737300635671,-500.0,0.00021917,3]
[349567883,1737300635682,-500.0,0.00021917,3]
[349567884,1737300635694,-500.0,0.00021917,3]
[349567885,1737300635704,-500.0,0.00021917,3]
[349567886,1737300635715,-500.0,0.00021917,3]
[349567887,1737300635726,-572.03489005,0.00021917,3]
[349567888,1737300635737,-506.48538674,0.00021917,3]
[349567889,1737300635748,-500.0,0.00021917,3]
[349567890,1737300635759,-500.0,0.00021917,3]
[349567891,1737300635770,-500.0,0.00021917,3]
[349567892,1737300635781,-394.31255513,0.00021917,3]
[349567893,1737300635792,-500.0,0.00021917,3]
[349567894,1737300635803,-721.57,0.00021917,3]
[349567895,1737300635814,-500.0,0.00021917,3]
[349567896,1737300635826,-500.0,0.00021917,3]
[349567897,1737300635837,-500.0,0.00021917,3]
[349567898,1737300635849,-500.0,0.00021917,3]
[349567899,1737300635860,-500.0,0.00021917,3]
[349567900,1737300635871,-455.67131939,0.00021917,3]
[349567901,1737300635882,-500.0,0.00021917,3]
[349567902,1737300635893,-500.0,0.00021917,3]
[349567903,1737300635907,-500.0,0.00021917,3]
[349567904,1737300635918,-500.0,0.00021917,3]
[349567905,1737300635930,-501.68967736,0.00021917,2]
[349567906,1737300635941,-500.0,0.00021917,3]
[349567907,1737300635952,-500.0,0.00021917,3]
[349567908,1737300635963,-500.0,0.00021917,3]
[349567909,1737300635972,-500.0,0.00021917,3]
[349567910,1737300635982,-500.0,0.00021917,3]
[349567911,1737300636109,-500.0,0.00021917,3]
[349567912,1737300636119,-500.0,0.00021917,3]
[349567913,1737300636129,-504.63584184,0.00021917,3]
[349567914,1737300636139,-500.0,0.00021917,3]
[349567915,1737300636149,-1005.15,0.00021917,2]
[349567916,1737300636159,-287.13587527,0.00021917,3]
[349567917,1737300636168,-500.0,0.00021917,3]
[349567918,1737300636178,-500.0,0.00021917,3]
[349567919,1737300636187,-500.0,0.00021917,3]
[349567920,1737300636196,-500.0,0.00021917,3]
[349567921,1737300636206,-500.0,0.00021917,3]
[349567922,1737300636218,-500.0,0.00021917,3]
[349567923,1737300636227,-500.0,0.00021917,3]
[349567924,1737300636237,-500.0,0.00021917,3]
[349567925,1737300636246,-500.0,0.00021917,2]
[349567926,1737300636258,-500.0,0.00021917,3]
[349567927,1737300636268,-500.0,0.00021917,3]
[349567928,1737300636277,-500.0,0.00021917,3]
[349567929,1737300636286,-500.0,0.00021917,3]
[349567930,1737300636296,-500.0,0.00021917,3]
[349567931,1737300636305,-243.10590486,0.00021917,3]
[349567932,1737300636315,-500.0,0.00021917,3]
[349567933,1737300636324,-500.0,0.00021917,3]
[349567934,1737300636333,-10783.52,0.00021917,3]
[349567935,1737300636342,-500.0,0.00021917,3]
[349567936,1737300636351,-500.0,0.00021917,3]
[349567937,1737300636360,-500.0,0.00021917,3]
[349567938,1737300636369,-500.0,0.00021917,3]
[349567939,1737300636379,-389.60663827,0.00021917,3]
[349567940,1737300636388,-500.0,0.00021917,3]
[349567941,1737300636396,-854.03,0.00021917,3]
[349567942,1737300636407,-500.0,0.00021917,3]
[349567943,1737300636416,-31564.9,0.00021917,3]
[349567944,1737300636426,-500.0,0.00021917,3]
[349567945,1737300636435,-500.0,0.00021917,3]
[349567946,1737300636444,-500.0,0.00021917,3]
[349567947,1737300636453,-3951.31,0.00021917,3]
[349567948,1737300636462,-1152.98,0.00021917,3]
[349567949,1737300636471,-1519.9,0.00021917,3]
[349567950,1737300636480,-500.0,0.00021917,3]
[349567951,1737300636489,-554.37,0.00021917,3]
[349567952,1737300636498,-500.0,0.00021917,3]
[349567953,1737300636507,-500.0,0.00021917,3]
[349567954,1737300636516,-160.0,0.00021917,3]
[349567955,1737300636525,-1476.7,0.00021917,3]
[349567956,1737300636534,-788.8,0.00021917,3]
[349567957,1737300636543,-4353.87,0.00021917,3]
[349567958,1737300636552,-500.0,0.00021917,3]
[349567959,1737300636560,-500.0,0.00021917,3]
[349567960,1737300636570,-945.01,0.00021917,3]
[349567961,1737300636579,-8156.18,0.00021917,3]
[349567962,1737300636588,-1361.84,0.00021917,3]
[349567963,1737300636597,-500.0,0.00021917,3]
[349567964,1737300636606,-500.0,0.00021917,3]
[349567965,1737300636616,-500.0,0.00021917,3]
[349567966,1737300636626,-500.0,0.00021917,3]
[349567967,1737300636635,-500.0,0.00021917,3]
[349567968,1737300636646,-500.0,0.00021917,3]
[349567969,1737300636658,-500.0,0.00021917,3]
[349567970,1737300636667,-500.0,0.00021917,3]
[349567971,1737300636676,-500.0,0.00021917,3]
[349567972,1737300636685,-500.0,0.00021917,3]
[349567973,1737300636695,-17530.6,0.00021917,3]
[349567974,1737300636704,-3540.58,0.00021917,3]
[349567975,1737300636714,-500.0,0.00021917,3]
[349567976,1737300636724,-500.0,0.00021917,3]
[349567977,1737300636733,-500.0,0.00021917,3]
[349567978,1737300636742,-500.0,0.00021917,3]
[349567979,1737300636751,-499.0,0.00021917,2]
[349567980,1737300636760,-500.0,0.00021917,3]
[349567981,1737300636769,-956.94,0.00021917,3]
[349567982,1737300636778,-500.0,0.00021917,3]
[349567983,1737300636787,-2516.2,0.00021917,3]
[349567984,1737300636796,-500.0,0.00021917,3]
[349567985,1737300636807,-501.81,0.00021917,3]
[349567986,1737300636825,-500.0,0.00021917,3]
[349567987,1737300636838,-1537.81,0.00021917,3]
[349567988,1737300636849,-11328.7,0.00021917,3]
[349567989,1737300636859,-676.59,0.00021917,3]
[349567990,1737300636868,-500.0,0.00021917,3]
[349567991,1737300636879,-500.0,0.00021917,3]
[349567992,1737300636888,-500.0,0.00021917,3]
[349567993,1737300636899,-1046.91,0.00021917,3]
[349567994,1737300636909,-500.0,0.00021917,3]
[349567995,1737300636919,-1159.26,0.00021917,3]
[349567996,1737300636928,-500.0,0.00021917,3]
[349567997,1737300636938,-2933.07,0.00021917,3]
[349567998,1737300636948,-500.0,0.00021917,3]
[349567999,1737300636958,-500.0,0.00021917,3]
[349568000,1737300636968,-500.0,0.00021917,3]
[349568001,1737300636978,-500.0,0.00021917,3]
[349568002,1737300636988,-500.0,0.00021917,3]
[349568003,1737300636999,-500.0,0.00021917,3]
[349568004,1737300637009,-498.11745552,0.00021917,3]
[349568005,1737300637018,-1274.02,0.00021917,3]
[349568006,1737300637028,-500.0,0.00021917,3]
[349568007,1737300637039,-500.0,0.00021917,3]
[349568008,1737300637049,-500.0,0.00021917,3]
[349568009,1737300637059,-500.0,0.00021917,3]
[349568010,1737300637069,-500.0,0.00021917,3]
[349568011,1737300637080,-500.0,0.00021917,3]
[349568012,1737300637091,-500.0,0.00021917,3]
[349568013,1737300637101,-500.0,0.00021917,3]
[349568014,1737300637111,-535.77893591,0.00021917,3]
[349568015,1737300637121,-500.0,0.00021917,3]
[349568016,1737300637131,-709.41,0.00021917,3]
[349568017,1737300637141,-2355.8,0.00021917,3]
[349568018,1737300637152,-272.43226078,0.00021917,3]
[349568019,1737300637162,-2927.54,0.00021917,3]
[349568020,1737300637172,-500.0,0.00021917,3]
[349568021,1737300637182,-2557.87,0.00021917,3]
[349568022,1737300637192,-962.67,0.00021917,3]
[349568023,1737300637202,-5127.37,0.00021917,3]
[349568024,1737300637213,-500.0,0.00021917,3]
[349568025,1737300637223,-500.0,0.00021917,3]
[349568026,1737300637233,-500.0,0.00021917,3]
[349568027,1737300637242,-793.76,0.00021917,3]
[349568028,1737300637253,-500.0,0.00021917,3]
[349568029,1737300637263,-500.0,0.00021917,3]
[349568030,1737300637273,-218.4634833,0.0002192,2]
[349568031,1737300637282,-218.4634833,0.00021954,2]
[349568032,1737300637293,-905.81507744,0.00022,2]
[349568033,1737300637304,-160.0,0.00022,2]
[349568034,1737300637319,-9079.29622473,0.00022003,2]
[349568035,1737300637329,-8167.48662392,0.00022003,3]
[349568036,1737300637339,-722.5564409,0.00022009,2]
[349568037,1737300637350,-1112.76388641,0.00022031,2]
[349568038,1737300637359,-500.0,0.00022049,3]
[349568039,1737300637369,-500.0,0.00022049,3]
[349568040,1737300637379,-164.565608,0.00022052,2]
[349568041,1737300637389,-500.0,0.00022053,3]
[349568042,1737300637398,-500.0,0.00022053,3]
[349568043,1737300637411,-338.31,0.00022053,3]
[349568044,1737300637420,-277.40628636,0.00022053,2]
[349568045,1737300637430,-500.0,0.00022053,2]
[349568046,1737300637440,-500.0,0.00022053,2]
[349568047,1737300637450,-490.30784083,0.00022053,2]
[349568048,1737300637459,-500.0,0.00022054,3]
[349568049,1737300637469,-500.0,0.00022054,3]
[349568050,1737300637479,-500.0,0.00022054,3]
[349568051,1737300637488,-510.78270975,0.00022054,3]
[349568052,1737300637498,-500.0,0.00022054,3]
[349568053,1737300637507,-562.53,0.00022054,3]
[349568054,1737300637517,-500.0,0.00022054,3]
[349568055,1737300637526,-775.0,0.00022054,3]
[349568056,1737300637535,-500.0,0.00022054,3]
[349568057,1737300637544,-500.0,0.00022054,3]
[349568058,1737300637554,-500.0,0.00022054,3]
[349568059,1737300637563,-500.0,0.00022054,3]
[349568060,1737300637573,-1069.31,0.00022054,3]
[349568061,1737300637582,-500.0,0.00022054,3]
[349568062,1737300637592,-500.0,0.00022054,3]
[349568063,1737300637601,-500.0,0.00022054,3]
[349568064,1737300637611,-500.0,0.00022054,3]
[349568065,1737300637620,-500.0,0.00022054,3]
[349568066,1737300637630,-500.0,0.00022054,3]
[349568067,1737300637640,-661.71,0.00022054,3]
[349568068,1737300637649,-500.0,0.00022054,3]
[349568069,1737300637660,-943.52,0.00022054,3]
[349568070,1737300637670,-500.0,0.00022054,3]
[349568071,1737300637680,-561.9,0.00022054,3]
[349568072,1737300637690,-500.0,0.00022054,3]
[349568073,1737300637700,-500.0,0.00022054,3]
[349568074,1737300637710,-500.0,0.00022054,3]
[349568075,1737300637720,-500.0,0.00022054,3]
[349568076,1737300637730,-500.0,0.00022054,3]
[349568077,1737300637740,-500.0,0.00022054,3]
[349568078,1737300637750,-500.0,0.00022054,3]
[349568079,1737300637759,-500.0,0.00022054,3]
[349568080,1737300637769,-721.57,0.00022054,3]
[349568081,1737300637779,-500.0,0.00022054,3]
[349568082,1737300637789,-500.0,0.00022054,3]
[349568083,1737300637798,-500.0,0.00022054,3]
[349568084,1737300637808,-500.0,0.00022054,3]
[349568085,1737300637817,-500.0,0.00022054,3]
[349568086,1737300637827,-415.22673669,0.00022054,3]
[349568087,1737300637840,-500.0,0.00022054,3]
[349568088,1737300637849,-496.70395487,0.00022054,3]
[349568089,1737300637859,-500.0,0.00022054,3]
[349568090,1737300637869,-500.0,0.00022054,3]
[349568091,1737300637879,-500.0,0.00022054,3]
[349568092,1737300637888,-500.0,0.00022054,3]
[349568093,1737300637897,-500.0,0.00022054,3]
[349568094,1737300637909,-1005.15,0.00022054,2]
[349568095,1737300637919,-500.0,0.00022054,3]
[349568096,1737300637928,-500.0,0.00022054,3]
[349568097,1737300637938,-500.0,0.00022054,3]
[349568098,1737300637948,-500.0,0.00022054,3]
[349568099,1737300637958,-500.0,0.00022054,3]
[349568100,1737300637967,-500.0,0.00022054,2]
[349568101,1737300637977,-500.0,0.00022054,3]
[349568102,1737300637987,-500.0,0.00022054,3]
[349568103,1737300637996,-10783.52,0.00022054,3]
[349568104,1737300638006,-500.0,0.00022054,3]
[349568105,1737300638015,-500.0,0.00022054,3]
[349568106,1737300638025,-500.0,0.00022054,3]
[349568107,1737300638035,-854.03,0.00022054,3]
[349568108,1737300638045,-567.64,0.00022054,3]
[349568109,1737300638055,-31564.9,0.00022054,3]
[349568110,1737300638064,-214.22701374,0.00022054,3]
[349568111,1737300638073,-500.0,0.00022054,3]
[349568112,1737300638083,-500.0,0.00022054,3]
[349568113,1737300638092,-3951.31,0.00022054,3]
[349568114,1737300638101,-1152.98,0.00022054,3]
[349568115,1737300638111,-1519.9,0.00022054,3]
[349568116,1737300638121,-500.0,0.00022054,3]
[349568117,1737300638131,-554.37,0.00022054,3]
[349568118,1737300638141,-1476.7,0.00022054,3]
[349568119,1737300638153,-788.8,0.00022054,3]
[349568120,1737300638162,-4353.87,0.00022054,3]
[349568121,1737300638172,-500.0,0.00022054,3]
[349568122,1737300638181,-945.01,0.00022054,3]
[349568123,1737300638191,-8156.18,0.00022054,3]
[349568124,1737300638200,-1361.84,0.00022054,3]
[349568125,1737300638211,-500.0,0.00022054,3]
[349568126,1737300638222,-500.0,0.00022054,3]
[349568127,1737300638232,-500.0,0.00022054,3]
[349568128,1737300638242,-500.0,0.00022054,3]
[349568129,1737300638251,-500.0,0.00022054,3]
[349568130,1737300638261,-205.75,0.00022054,3]
[349568131,1737300638271,-17530.6,0.00022054,3]
[349568132,1737300638280,-3540.58,0.00022054,3]
[349568133,1737300638290,-500.0,0.00022054,3]
[349568134,1737300638300,-500.0,0.00022054,3]
[349568135,1737300638311,-500.0,0.00022054,3]
[349568137,1737300638320,-956.94,0.00022054,3]
[349568139,1737300638330,-500.0,0.00022054,3]
[349568141,1737300638341,-2516.2,0.00022054,3]
[349568143,1737300638351,-500.0,0.00022054,3]
[349568145,1737300638361,-500.0,0.00022054,3]
[349568147,1737300638370,-1537.81,0.00022054,3]
[349568149,1737300638380,-11328.7,0.00022054,3]
[349568151,1737300638389,-676.59,0.00022054,3]
[349568152,1737300638399,-500.0,0.00022054,3]
[349568153,1737300638411,-500.0,0.00022054,3]
[349568154,1737300638421,-500.0,0.00022054,3]
[349568155,1737300638430,-1046.91,0.00022054,3]
[349568156,1737300638440,-500.0,0.00022054,3]
[349568157,1737300638450,-1159.26,0.00022054,3]
[349568158,1737300638459,-500.0,0.00022054,3]
[349568159,1737300638469,-2933.07,0.00022054,3]
[349568160,1737300638479,-368.58190145,0.00022054,3]
[349568161,1737300638489,-500.0,0.00022054,3]
[349568162,1737300638499,-500.0,0.00022054,3]
[349568163,1737300638509,-500.0,0.00022054,3]
[349568164,1737300638518,-500.0,0.00022054,3]
[349568165,1737300638629,-1274.02,0.00022054,3]
[349568166,1737300638640,-709.41,0.00022054,3]
[349568167,1737300638650,-2355.8,0.00022054,3]
[349568168,1737300638662,-2927.54,0.00022054,3]
[349568169,1737300638672,-500.0,0.00022054,3]
[349568170,1737300638682,-2557.87,0.00022054,3]
[349568171,1737300638692,-962.67,0.00022054,3]
[349568172,1737300638702,-5127.37,0.00022054,3]
[349568173,1737300638711,-268.71818721,0.00022054,3]
[349568174,1737300638721,-500.0,0.00022054,3]
[349568175,1737300638731,-500.0,0.00022054,3]
[349568176,1737300638740,-793.76,0.00022054,3]
[349568177,1737300638750,-249.0,0.00022058,2]
[349568178,1737300638760,-259.587786,0.00022068,2]
[349568179,1737300638770,-500.0,0.00022073,2]
[349568180,1737300638780,-500.0,0.00022073,2]
[349568181,1737300638790,-500.0,0.00022073,2]
[349568182,1737300638800,-170.0,0.00022099,2]
[349568184,1737300638809,-170.0,0.00022099,2]
[349568186,1737300638819,-171.86,0.00022099,2]
[349568188,1737300638829,-8167.48662392,0.00022107,3]
[349568190,1737300638840,-2308.0,0.00022132,2]
[349568192,1737300638850,-395.0,0.00022132,2]
[349568194,1737300638860,-522.33941698,0.00022149,2]
[349568196,1737300638870,-481.62,0.00022191,3]
[349568198,1737300638880,-500.0,0.00022191,3]
[349568200,1737300638890,-153.188739,0.00022191,7]
[349568202,1737300638900,-500.0,0.00022191,3]
[349568204,1737300638911,-151.0,0.00022191,7]
[349568206,1737300638920,-153.902647,0.00022191,7]
[349568208,1737300638930,-152.904828,0.00022191,7]
[349568210,1737300638941,-151.0,0.00022191,7]
[349568212,1737300638951,-775.0,0.00022191,3]
[349568213,1737300638962,-500.0,0.00022191,3]
[349568214,1737300638972,-1069.31,0.00022191,3]
[349568215,1737300638983,-500.0,0.00022191,3]
[349568216,1737300638993,-500.0,0.00022191,3]
[349568217,1737300639004,-500.0,0.00022191,3]
[349568218,1737300639014,-500.0,0.00022191,3]
[349568219,1737300639024,-661.71,0.00022191,3]
[349568220,1737300639034,-500.0,0.00022191,3]
[349568221,1737300639045,-943.52,0.00022191,3]
[349568222,1737300639054,-500.0,0.00022191,3]
[349568223,1737300639065,-561.9,0.00022191,3]
[349568224,1737300639075,-500.0,0.00022191,3]
[349568225,1737300639084,-500.0,0.00022191,3]
[349568226,1737300639094,-500.0,0.00022191,3]
[349568227,1737300639104,-500.0,0.00022191,3]
[349568228,1737300639114,-177.88,0.00022191,3]
[349568229,1737300639124,-500.0,0.00022191,3]
[349568230,1737300639134,-500.0,0.00022191,3]
[349568231,1737300639144,-500.0,0.00022191,3]
[349568233,1737300639154,-721.57,0.00022191,3]
[349568235,1737300639163,-500.0,0.00022191,3]
[349568237,1737300639173,-500.0,0.00022191,3]
[349568239,1737300639182,-500.0,0.00022191,3]
[349568241,1737300639192,-500.0,0.00022191,3]
[349568243,1737300639203,-500.0,0.00022191,3]
[349568245,1737300639215,-500.0,0.00022191,3]
[349568247,1737300639224,-500.0,0.00022191,3]
[349568249,1737300639235,-500.0,0.00022191,3]
[349568251,1737300639244,-500.0,0.00022191,3]
[349568253,1737300639255,-500.0,0.00022191,3]
[349568255,1737300639264,-1005.15,0.00022191,2]
[349568257,1737300639274,-359.36,0.00022191,3]
[349568259,1737300639286,-500.0,0.00022191,3]
[349568261,1737300639295,-500.0,0.00022191,3]
[349568263,1737300639305,-232.09,0.00022191,3]
[349568265,1737300639315,-500.0,0.00022191,3]
[349568267,1737300639325,-500.0,0.00022191,2]
[349568269,1737300639338,-151.0,0.00022191,7]
[349568271,1737300639347,-500.0,0.00022191,3]
[349568273,1737300639356,-10783.52,0.00022191,3]
[349568275,1737300639366,-565.18,0.00022191,3]
[349568277,1737300639376,-500.0,0.00022191,3]
[349568279,1737300639386,-151.0,0.00022191,7]
[349568281,1737300639395,-151.0,0.00022191,7]
[349568284,1737300639407,-500.0,0.00022191,3]
[349568286,1737300639417,-854.03,0.00022191,3]
[349568288,1737300639426,-31564.9,0.00022191,3]
[349568289,1737300639435,-500.0,0.00022191,3]
[349568291,1737300639444,-500.0,0.00022191,3]
[349568293,1737300639453,-3951.31,0.00022191,3]
[349568296,1737300639463,-1152.98,0.00022191,3]
[349568297,1737300639471,-1519.9,0.00022191,3]
[349568299,1737300639481,-500.0,0.00022191,3]
[349568302,1737300639490,-554.37,0.00022191,3]
[349568303,1737300639500,-1476.7,0.00022191,3]
[349568306,1737300639510,-151.0,0.00022191,7]
[349568308,1737300639520,-788.8,0.00022191,3]
[349568310,1737300639530,-4353.87,0.00022191,3]
[349568312,1737300639538,-500.0,0.00022191,3]
[349568314,1737300639548,-945.01,0.00022191,3]
[349568316,1737300639558,-151.0,0.00022191,7]
[349568318,1737300639568,-151.0,0.00022191,7]
[349568320,1737300639579,-151.0,0.00022191,7]
[349568322,1737300639589,-8156.18,0.00022191,3]
[349568324,1737300639598,-1361.84,0.00022191,3]
[349568326,1737300639608,-500.0,0.00022191,3]
[349568327,1737300639618,-368.77626026,0.00022191,3]
[349568330,1737300639629,-500.0,0.00022191,3]
[349568331,1737300639638,-500.0,0.00022191,3]
[349568334,1737300639648,-151.0,0.00022191,7]
[349568336,1737300639661,-17530.6,0.00022191,3]
[349568338,1737300639671,-151.0,0.00022191,7]
[349568339,1737300639680,-151.0,0.00022191,7]
[349568342,1737300639690,-3540.58,0.00022191,3]
[349568344,1737300639700,-151.0,0.00022191,7]
[349568346,1737300639710,-151.0,0.00022191,7]
[349568348,1737300639719,-151.0,0.00022191,7]
[349568350,1737300639728,-231.68149206,0.00022191,3]
[349568352,1737300639738,-500.0,0.00022191,3]
[349568354,1737300639747,-154.704502,0.00022191,7]
[349568355,1737300639756,-956.94,0.00022191,3]
[349568356,1737300639766,-151.0,0.00022191,7]
[349568358,1737300639776,-151.0,0.00022191,7]
[349568360,1737300639786,-2516.2,0.00022191,3]
[349568361,1737300639796,-500.0,0.00022191,3]
[349568363,1737300639806,-196.77013394,0.00022191,3]
[349568375,1737300640018,-688.59428595,0.00022132,2]
[349568376,1737300640030,-674.62973335,0.00022132,2]
[349568377,1737300640042,-699.7759807,0.00022132,2]
[349568378,1737300640053,-303.22986606,0.00022191,3]
[349568379,1737300640062,-1537.81,0.00022191,3]
[349568380,1737300640072,-151.0,0.00022191,7]
[349568381,1737300640082,-11328.7,0.00022191,3]
[349568382,1737300640092,-156.575497,0.00022191,7]
[349568383,1737300640101,-676.59,0.00022191,3]
[349568384,1737300640111,-500.0,0.00022191,3]
[349568385,1737300640121,-521.91521285,0.00022191,3]
[349568386,1737300640131,-500.0,0.00022191,3]